bitfinex/quotes_ETHUSD_20220113
["timestamp","ask_amount","ask_price","bid_price","bid_amount"]
[1642048669127,0.00113684,3348.1,3348.0,1.63113717]
[1642048673364,0.00113684,3348.1,3348.0,2.47144282]
[1642048674510,0.00113684,3348.1,3348.0,7.17144282]
[1642048674714,0.00113684,3348.1,3348.0,7.29084282]
[1642048675517,2.7652984,3349.3,3348.1,6.8]
[1642048675518,0.0194,3349.3,3348.1,6.8]
[1642048675714,0.0194,3349.3,3348.2,1.1573]
[1642048675915,0.00568424,3349.1,3348.3,17.6594]
[1642048676118,0.00568424,3349.1,3348.3,17.9594]
[1642048676320,0.00511582,3349.0,3348.3,17.6594]
[1642048676619,1.51764411,3348.9,3348.6,0.7463862]
[1642048676822,1.51764411,3348.9,3348.2,1.1573]
[1642048677019,0.00397897,3348.8,3348.4,0.84030565]
[1642048677418,0.00341055,3348.7,3348.4,0.84030565]
[1642048677860,0.00284212,3348.6,3348.4,0.84030565]
[1642048678262,0.0022737,3348.5,3348.2,1.1573]
[1642048678661,0.00170528,3348.4,3348.2,1.1573]
[1642048679060,0.00113685,3348.3,3348.2,1.1573]
[1642048679863,0.00113685,3348.3,3348.2,1.4573]
[1642048680464,0.00113685,3348.3,3348.2,1.1573]
[1642048680661,0.00113685,3348.3,3348.2,1.99798463]
[1642048682713,0.00113685,3348.3,3348.2,2.29798463]
[1642048683120,0.00113685,3348.3,3348.2,1.99798463]
[1642048691521,0.00113685,3348.3,3348.2,2.29798463]
[1642048691723,0.00113685,3348.3,3348.2,1.99798463]
[1642048694061,0.00113685,3348.3,3348.2,2.29798463]
[1642048694259,0.00113685,3348.3,3348.2,21.40717407]
[1642048694658,0.00113685,3348.3,3348.2,22.40717407]
[1642048695058,1.69464189,3348.8,3348.4,17.54]
[1642048695261,1.69464189,3348.8,3348.7,17.54]
[1642048695658,2.78289681,3349.8,3349.1,1.34231304]
[1642048695659,1.69464189,3349.2,3349.1,1.34231304]
[1642048696259,1.69464189,3349.2,3349.1,1.64231304]
[1642048696715,1.69464189,3349.2,3349.0,0.7463964]
[1642048696917,0.00682108,3349.5,3349.1,0.84068463]
[1642048697116,0.1194,3349.4,3349.1,0.84068463]
[1642048697314,0.1194,3349.5,3349.1,0.84068463]
[1642048697514,0.12622108,3349.5,3349.1,0.84068463]
[1642048698119,1.69464189,3349.3,3349.1,1.1565463]
[1642048698420,1.69464189,3349.3,3349.2,0.7464442]
[1642048698821,1.70032613,3349.3,3349.2,0.7464442]
[1642048699226,1.70032613,3349.3,3348.9,2.60965003]
[1642048699227,0.00568424,3349.3,3348.9,2.60965003]
[1642048699620,0.00511581,3349.2,3348.9,2.60965003]
[1642048700019,0.00454739,3349.1,3348.9,2.60965003]
[1642048700222,0.00454739,3349.1,3349.0,2.12862242]
[1642048700458,1.69464189,3349.2,3349.0,2.12862242]
[1642048700660,1.69464189,3349.2,3349.0,3.62143262]
[1642048701059,1.69464189,3349.1,3349.0,3.62143262]
[1642048701261,1.69464189,3349.1,3349.0,2.12862242]
[1642048701959,1.70089455,3349.4,3349.0,2.12862242]
[1642048702358,0.00568424,3349.3,3349.0,2.12862242]
[1642048702760,1.53275218,3349.6,3349.0,1.2935639]
[1642048702761,0.00511581,3349.2,3349.0,1.2935639]
[1642048702965,0.00511581,3349.2,3349.0,19.9993556]
[1642048703266,3.22739407,3349.6,3349.0,19.9993556]
[1642048703267,0.00454739,3349.1,3349.0,19.9993556]
[1642048703665,0.00682108,3349.1,3349.0,19.9993556]
[1642048703869,1.70146297,3349.1,3349.0,19.9993556]
[1642048704118,1.70146297,3349.1,3349.0,1.7129639]
[1642048704308,1.70146297,3349.1,3349.0,0.4194]
[1642048705011,0.00682108,3349.1,3349.0,0.4194]
[1642048705810,1.70146297,3349.1,3349.0,0.4194]
[1642048706015,1.70146297,3349.1,3349.0,0.3]
[1642048706614,0.00682108,3349.1,3349.0,0.3]
[1642048707414,1.70146297,3349.1,3349.0,0.3]
[1642048708181,0.00682108,3349.1,3349.0,0.3]
[1642048709181,1.70146297,3349.1,3349.0,0.3]
[1642048709382,1.70146297,3349.1,3348.9,0.7464037]
[1642048709781,0.00397897,3349.0,3348.9,0.7464037]
[1642048709981,1.69464189,3349.1,3349.0,1.99602103]
[1642048710186,1.81404189,3349.6,3349.0,1.99602103]
[1642048710585,0.00284211,3349.5,3349.0,1.99602103]
[1642048710787,0.1194,3349.4,3349.0,1.99602103]
[1642048710989,0.12167369,3349.4,3349.0,1.99602103]
[1642048711185,0.00170527,3349.3,3349.0,1.99602103]
[1642048711629,0.00113684,3349.2,3349.0,1.99602103]
[1642048712021,1.69634716,3349.3,3349.0,1.99602103]
[1642048712419,0.00113684,3349.2,3349.0,1.99602103]
[1642048713422,0.00113684,3349.2,3349.0,2.74248703]
[1642048713624,0.00113684,3349.2,3349.0,1.99602103]
[1642048715024,1.69577873,3349.2,3349.0,1.99602103]
[1642048716062,0.00113684,3349.2,3349.0,1.99602103]
[1642048721116,0.00113684,3349.2,3349.1,0.82394272]
[1642048721514,0.00113684,3349.2,3349.0,1.99602103]
[1642048724270,0.00113684,3349.2,3349.1,0.82231961]
[1642048735111,0.00113684,3349.2,3349.1,3.34720841]
[1642048735911,0.00113684,3349.2,3349.1,0.82231961]
[1642048736110,0.00113684,3349.2,3349.1,3.23109918]
[1642048736308,0.00113684,3349.2,3349.1,0.82231961]
[1642048737513,0.00113684,3349.2,3349.1,3.26036676]
[1642048738772,0.00113684,3349.2,3349.1,0.82231961]
[1642048739972,0.00113684,3349.2,3349.1,3.20221569]
[1642048740176,0.00113684,3349.2,3349.1,20.74660391]
[1642048741272,0.00113684,3349.2,3349.1,3.20660391]
[1642048741472,0.00113684,3349.2,3349.1,4.77238386]
[1642048741916,0.00113684,3349.2,3349.1,5.51869386]
[1642048742314,1.69464189,3349.8,3349.1,21.91231391]
[1642048742516,1.69464189,3349.8,3349.4,0.7462734]
[1642048742718,0.00397896,3349.7,3349.5,0.1194]
[1642048742922,0.00397896,3349.7,3349.5,0.4194]
[1642048743220,0.00341054,3349.6,3349.5,1.87811618]
[1642048743824,1.64805243,3349.9,3349.7,1.55486113]
[1642048744123,1.64805243,3349.9,3349.7,2.30112163]
[1642048744124,0.00113684,3349.8,3349.7,2.30112163]
[1642048744523,0.00113684,3349.8,3349.7,4.75896624]
[1642048748270,0.00113684,3349.8,3349.7,4.01270574]
[1642048748470,0.00113684,3349.8,3349.7,1.55486113]
[1642048749612,0.00113684,3349.8,3349.7,3.92019718]
[1642048750815,0.00113684,3349.8,3349.7,1.55486113]
[1642048751515,0.00113684,3349.8,3349.7,3.55486113]
[1642048751719,0.00113684,3349.8,3349.7,5.97090951]
[1642048753184,0.00113684,3349.8,3349.7,6.93370951]
[1642048753379,0.00113684,3349.8,3349.7,24.47370951]
[1642048754179,0.00113684,3349.8,3349.7,22.35766113]
[1642048754378,0.00113684,3349.8,3349.7,23.35766113]
[1642048755378,5.9702,3351.0,3349.8,1.99886316]
[1642048755583,5.9702,3351.0,3350.3,0.3543]
[1642048755781,0.00625266,3350.9,3349.9,3.01697968]
[1642048755980,0.00625266,3350.9,3349.9,0.3]
[1642048756279,0.00568424,3350.8,3349.8,7.29454281]
[1642048756479,1.28666108,3350.4,3349.8,3.27756313]
[1642048756721,2.26992691,3350.3,3349.8,2.13706313]
[1642048756919,2.26992691,3350.3,3349.8,1.99886316]
[1642048756920,2.39206903,3350.3,3349.8,1.99886316]
[1642048757219,0.0022737,3350.2,3349.8,1.99886316]
[1642048757418,0.1194,3350.1,3349.8,1.99886316]
[1642048757619,0.00170527,3350.1,3349.8,1.99886316]
[1642048757820,0.00113685,3350.0,3349.8,3.49662532]
[1642048758227,0.0022737,3350.2,3349.9,1.48039061]
[1642048758624,0.00170527,3350.1,3349.8,1.99886316]
[1642048758922,0.00113685,3350.0,3349.8,1.99886316]
[1642048759422,0.426,3350.5,3349.8,1.99886316]
[1642048759623,0.1193,3350.3,3349.8,1.99886316]
[1642048759824,0.426,3350.5,3349.8,1.99886316]
[1642048759825,0.12281054,3350.4,3349.9,1.44306363]
[1642048760021,0.0022737,3350.2,3349.9,1.44306363]
[1642048760225,0.00284212,3350.3,3349.9,1.44306363]
[1642048760463,0.00170527,3350.1,3349.9,1.44306363]
[1642048760665,0.0022737,3350.2,3349.8,1.99886316]
[1642048760866,0.00113685,3350.0,3349.8,1.99886316]
[1642048761068,0.00170527,3350.1,3349.8,1.99886316]
[1642048761265,0.74632,3350.1,3349.8,1.99886316]
[1642048761470,0.00113685,3350.0,3349.8,1.99886316]
[1642048765010,1.81676395,3350.0,3349.8,1.99886316]
[1642048767311,5.3194,3349.9,3349.8,1.99886316]
[1642048768468,5.7454,3349.9,3349.8,1.99886316]
[1642048768672,7.5610271,3349.9,3349.8,1.99886316]
[1642048769070,2.3610271,3349.9,3349.8,1.99886316]
[1642048772120,2.2416271,3349.9,3349.8,1.99886316]
[1642048776266,2.3610271,3349.9,3349.8,1.99886316]
[1642048777366,2.2416271,3349.9,3349.8,1.99886316]
[1642048781431,2.2416271,3349.9,3349.7,2.0]
[1642048781627,0.74644,3349.8,3349.7,2.0]
[1642048782433,2.5620671,3349.8,3349.7,2.0]
[1642048787544,1.8156271,3349.8,3349.7,2.0]
[1642048789040,1.81676395,3350.0,3349.7,2.0]
[1642048790672,2.56315395,3350.0,3349.7,2.0]
[1642048791471,2.5620171,3350.0,3349.7,2.0]
[1642048792279,4.0548571,3350.0,3349.7,2.0]
[1642048792478,1.49297,3349.9,3349.7,2.0]
[1642048792879,3.3085971,3349.9,3349.7,2.0]
[1642048793378,1.8156271,3349.9,3349.7,2.0]
[1642048793583,1.8156271,3349.8,3349.7,2.0]
[1642048795228,2.5620571,3349.9,3349.7,2.0]
[1642048796327,7.2850271,3349.8,3349.7,2.0]
[1642048796927,1.9350271,3349.8,3349.7,2.0]
[1642048797130,2.2350271,3349.8,3349.7,2.0]
[1642048797329,1.9350271,3349.8,3349.7,2.0]
[1642048797527,2.2350271,3349.8,3349.7,2.0]
[1642048797975,1.9350271,3349.8,3349.7,2.0]
[1642048798173,2.2350271,3349.8,3349.7,2.0]
[1642048798376,1.9350271,3349.8,3349.7,2.0]
[1642048800275,2.2350271,3349.8,3349.7,2.0]
[1642048802129,3.76777928,3349.8,3349.7,2.0]
[1642048803533,3.46777928,3349.8,3349.7,2.0]
[1642048804131,3.34837928,3349.8,3349.7,2.0]
[1642048804736,1.8156271,3349.8,3349.7,2.0]
[1642048806378,3.34837928,3349.8,3349.7,2.0]
[1642048807179,1.8156271,3349.8,3349.7,2.0]
[1642048808680,3.34837928,3349.8,3349.7,2.0]
[1642048810726,1.8156271,3349.8,3349.7,2.0]
[1642048812126,3.34995306,3349.8,3349.7,2.0]
[1642048814879,1.8156271,3349.8,3349.7,2.0]
[1642048815681,2.5620771,3349.8,3349.7,2.0]
[1642048815881,0.74645,3349.8,3349.7,2.0]
[1642048816080,1.8156271,3349.9,3349.7,2.0]
[1642048819055,1.8156271,3349.9,3349.8,6.21697968]
[1642048819257,1.53432596,3350.1,3349.9,6.8]
[1642048819455,2.596e-05,3350.1,3349.9,18.6267]
[1642048819655,2.19915423,3350.3,3349.9,18.9267]
[1642048820054,0.0022737,3350.2,3349.9,18.9267]
[1642048820256,0.0022737,3350.2,3350.0,1.4087837]
[1642048820483,3.01926625,3350.6,3350.1,6.2693]
[1642048820686,3.01926625,3350.6,3350.1,6.5693]
[1642048820882,0.0022737,3350.2,3350.1,6.5693]
[1642048821084,0.0022737,3350.2,3350.1,0.1193]
[1642048821284,1.3951001,3350.5,3350.1,0.1193]
[1642048821685,0.00341054,3350.4,3350.1,0.1193]
[1642048822084,0.00284212,3350.3,3349.9,0.1193]
[1642048822485,1.3951001,3350.5,3349.9,0.1193]
[1642048822486,0.00341054,3350.4,3349.9,0.1193]
[1642048822888,0.00284212,3350.3,3349.9,0.1193]
[1642048823297,0.00341054,3350.4,3349.8,0.1193]
[1642048823693,0.00284212,3350.3,3349.8,0.1193]
[1642048824129,2.1413301,3350.5,3349.8,0.1193]
[1642048824130,0.00341054,3350.4,3349.8,0.1193]
[1642048824633,1.3951001,3350.5,3349.8,0.1193]
[1642048824634,0.00284212,3350.3,3349.8,0.1193]
[1642048825032,0.00341054,3350.4,3349.8,0.1193]
[1642048825434,0.00284212,3350.3,3349.8,0.1193]
[1642048825836,0.00341054,3350.4,3349.8,17.6593]
[1642048826132,1.3951001,3350.5,3349.9,19.95439203]
[1642048826133,0.00284212,3350.3,3349.9,19.95439203]
[1642048826537,0.00341054,3350.4,3349.9,2.71439203]
[1642048826936,0.00284212,3350.3,3349.9,2.71439203]
[1642048827337,0.00341054,3350.4,3349.9,0.3]
[1642048827535,0.00341054,3350.4,3350.0,0.1193]
[1642048827734,0.00284212,3350.3,3349.9,0.1193]
[1642048827984,0.00284212,3350.3,3349.9,17.6593]
[1642048828186,0.00341054,3350.4,3349.9,17.6593]
[1642048828581,0.00284212,3350.3,3349.9,17.6593]
[1642048828782,0.00284212,3350.3,3350.1,17.54]
[1642048828992,0.00397897,3350.5,3350.2,27.06327034]
[1642048829187,0.00397897,3350.5,3350.3,0.1193]
[1642048829384,0.00341054,3350.4,3350.3,0.1193]
[1642048829584,1.48642763,3350.4,3350.3,0.1193]
[1642048830185,1.48642763,3350.4,3350.1,2.84257034]
[1642048830384,1.48642763,3350.4,3350.1,0.1193]
[1642048830585,0.00284212,3350.3,3350.1,0.1193]
[1642048831485,0.00284212,3350.3,3350.0,0.1193]
[1642048833235,0.00284212,3350.3,3350.0,2.51906127]
[1642048833439,0.00284212,3350.3,3350.0,0.1193]
[1642048833742,0.00284212,3350.3,3349.9,4.5069]
[1642048833743,0.00284212,3350.3,3349.9,3.0]
[1642048834540,1.49262,3350.2,3349.9,3.0]
[1642048834738,0.00284212,3350.3,3349.9,3.0]
[1642048834936,0.00170527,3350.1,3349.9,3.0]
[1642048835239,2.97557709,3350.4,3349.9,3.0]
[1642048835240,0.00113685,3350.0,3349.9,3.0]
[1642048841035,0.00113685,3350.0,3349.9,5.0]
[1642048841449,1.79184299,3350.0,3349.9,5.0]
[1642048843087,1.91124299,3350.0,3349.9,5.0]
[1642048844187,1.79184299,3350.0,3349.9,5.0]
[1642048851085,1.74184299,3350.0,3349.9,5.0]
[1642048852387,1.49256,3350.2,3349.9,5.0]
[1642048853196,0.74638,3350.1,3349.9,5.0]
[1642048853393,2.23919,3350.1,3349.9,5.0]
[1642048855347,1.49277,3350.1,3349.9,5.0]
[1642048860489,2.2392469,3350.1,3349.9,5.0]
[1642048860688,2.3586469,3350.1,3349.9,5.0]
[1642048860890,1.61217,3350.1,3349.9,5.0]
[1642048861952,1.49277,3350.1,3349.9,5.0]
[1642048871448,1.81151077,3350.0,3349.9,5.0]
[1642048871645,1.81151077,3350.0,3349.9,7.46985378]
[1642048871844,1.81151077,3350.0,3349.9,7.58925378]
[1642048872043,1.81151077,3350.0,3349.9,5.1194]
[1642048872548,1.81151077,3350.0,3349.9,5.85213437]
[1642048873390,1.81151077,3350.1,3349.9,5.85213437]
[1642048874793,1.81151077,3350.1,3349.9,5.0]
[1642048876195,3.30440077,3350.1,3349.9,5.0]
[1642048876838,6.04475419,3350.1,3350.0,0.73375061]
[1642048877037,6.07481042,3350.1,3350.0,0.73375061]
[1642048877844,6.07481042,3350.1,3349.9,5.0]
[1642048878043,0.74644,3350.0,3349.9,5.0]
[1642048878843,3.32086849,3350.0,3349.9,5.0]
[1642048879043,5.13237926,3350.0,3349.9,5.0]
[1642048880244,2.55795077,3350.0,3349.9,5.0]
[1642048880891,5.12902832,3350.0,3349.9,5.0]
[1642048881186,2.55795077,3350.0,3349.9,5.0]
[1642048883197,1.81151077,3350.0,3349.9,5.0]
[1642048883997,4.35585754,3350.0,3349.9,5.0]
[1642048884846,4.65585754,3350.0,3349.9,5.0]
[1642048885649,4.77525754,3350.0,3349.9,5.0]
[1642048887749,4.65585754,3350.0,3349.9,5.0]
[1642048891297,6.95021725,3350.0,3349.9,5.0]
[1642048891641,6.95021725,3350.0,3349.7,1.02701]
[1642048891642,3.8966,3349.8,3349.7,1.02701]
[1642048891841,3.38429001,3349.8,3349.7,1.02701]
[1642048892041,3.38429001,3349.8,3349.7,1.02871527]
[1642048892642,4.91859972,3349.8,3349.7,1.02871527]
[1642048892843,8.26309466,3349.8,3349.7,1.02871527]
[1642048893046,5.62540465,3349.8,3349.7,1.02871527]
[1642048893446,6.69843128,3349.8,3349.7,1.02871527]
[1642048893649,4.09242048,3349.8,3349.7,1.02871527]
[1642048893848,6.72482623,3349.8,3349.7,1.02871527]
[1642048894053,4.09242048,3349.8,3349.7,1.02871527]
[1642048895586,6.67048025,3349.8,3349.7,1.02871527]
[1642048896187,4.09242048,3349.8,3349.7,1.02871527]
[1642048897389,6.66775179,3349.8,3349.7,1.02871527]
[1642048898398,8.20073596,3349.8,3349.7,1.02871527]
[1642048898595,5.62540465,3349.8,3349.7,1.02871527]
[1642048899237,4.09242048,3349.8,3349.7,1.02871527]
[1642048900238,4.09242048,3349.8,3349.7,4.02871527]
[1642048901640,2.55811077,3349.8,3349.7,4.02871527]
[1642048904695,1.81151077,3349.8,3349.7,4.02871527]
[1642048905295,1.81151077,3349.8,3349.7,3.00170527]
[1642048906298,3.01086833,3349.8,3349.7,3.00170527]
[1642048911993,2.91086833,3349.8,3349.7,3.00170527]
[1642048914240,1.71151077,3349.8,3349.7,3.00170527]
[1642048916042,2.91400932,3349.8,3349.7,3.00170527]
[1642048920303,3.21400932,3349.8,3349.7,3.00170527]
[1642048920800,3.21400932,3349.8,3349.2,0.1194]
[1642048920801,0.74667,3349.6,3349.2,0.1194]
[1642048921100,1.04677,3349.4,3349.3,0.00227369]
[1642048921297,1.04677,3349.4,3348.8,0.04828078]
[1642048921298,1.4934991,3349.2,3348.8,0.04828078]
[1642048921499,1.7934991,3349.2,3348.8,0.04828078]
[1642048921743,1.7934991,3349.2,3348.9,0.0022737]
[1642048921949,0.74672,3349.0,3348.9,0.0022737]
[1642048922546,1.94779627,3349.0,3348.9,0.0022737]
[1642048924852,4.64682586,3349.0,3348.9,0.0022737]
[1642048925707,1.94779627,3349.0,3348.9,0.0022737]
[1642048926309,4.56970724,3349.0,3348.9,0.0022737]
[1642048926910,4.56796931,3349.0,3348.9,0.0022737]
[1642048927115,1.94779627,3349.0,3348.9,0.0022737]
[1642048927610,4.58744253,3349.0,3348.9,1.0022737]
[1642048928437,1.94779627,3349.0,3348.9,1.0022737]
[1642048928616,4.05,3348.9,3348.8,0.04828078]
[1642048928818,4.1694,3348.9,3348.8,0.04828078]
[1642048929021,4.4694,3348.9,3348.8,0.04828078]
[1642048929648,4.4694,3348.9,3348.2,1.1321]
[1642048929846,1.4937114,3348.6,3348.2,1.1321]
[1642048930047,0.74686,3348.4,3348.3,0.00341054]
[1642048930447,0.74686,3348.4,3348.0,0.00511581]
[1642048931147,0.74686,3348.4,3348.0,3.0]
[1642048931549,0.74685,3348.3,3348.1,0.00454739]
[1642048932549,2.51936445,3348.3,3348.1,0.78153018]
[1642048932996,2.51936445,3348.3,3348.2,0.00397896]
[1642048934096,2.51936445,3348.3,3348.2,0.78096175]
[1642048934696,0.74685,3348.3,3348.2,0.78096175]
[1642048934896,0.74685,3348.3,3348.2,0.00397896]
[1642048935896,0.74685,3348.3,3348.2,0.78096175]
[1642048936939,0.74685,3348.3,3348.2,0.00397896]
[1642048937741,0.74685,3348.3,3348.2,0.78096175]
[1642048938644,0.74685,3348.3,3348.2,0.00397896]
[1642048939444,0.74685,3348.3,3348.2,0.78096175]
[1642048940250,1.49342,3348.7,3348.2,0.00397896]
[1642048941106,1.49342,3348.7,3348.2,0.78096175]
[1642048941909,1.73439014,3348.6,3348.2,0.78096175]
[1642048942608,1.49342,3348.7,3348.2,0.78096175]
[1642048943008,0.74669,3348.7,3348.2,0.78096175]
[1642048943609,1.73430736,3348.6,3348.2,0.78096175]
[1642048944342,0.74669,3348.7,3348.2,0.78096175]
[1642048945348,1.61269,3348.9,3348.2,0.78096175]
[1642048945549,1.49329,3348.9,3348.3,0.1194]
[1642048945953,1.49329,3348.9,3348.4,0.00284211]
[1642048946651,0.74663,3348.9,3348.4,0.00284211]
[1642048946849,1.73416738,3348.8,3348.4,0.7798249]
[1642048947049,1.73416738,3348.8,3348.5,0.1194]
[1642048947249,1.73416738,3348.8,3348.5,0.00227369]
[1642048947453,1.73416738,3348.8,3348.6,0.00170527]
[1642048947654,1.73416738,3348.9,3348.5,0.00227369]
[1642048948109,2.48078738,3348.9,3348.5,0.00227369]
[1642048948510,1.73416738,3348.9,3348.5,0.00227369]
[1642048949112,1.20107627,3349.0,3348.5,0.00227369]
[1642048949412,1.20107627,3349.0,3348.5,0.77925648]
[1642048949809,0.74667,3348.9,3348.6,0.00170527]
[1642048950010,1.49343,3348.8,3348.6,0.00170527]
[1642048950409,2.24016,3348.8,3348.6,0.00170527]
[1642048951213,1.71054209,3348.7,3348.6,0.00170527]
[1642048953446,1.71054209,3348.8,3348.6,0.00170527]
[1642048956092,3.20391209,3348.8,3348.6,0.00170527]
[1642048956693,1.71054209,3348.7,3348.6,0.00170527]
[1642048966502,4.31479637,3348.7,3348.6,0.00170527]
[1642048966746,1.71054209,3348.7,3348.6,0.00170527]
[1642048971101,1.82994209,3348.7,3348.6,0.00170527]
[1642048972903,1.82994209,3348.7,3348.2,0.00397896]
[1642048973105,0.74678,3348.5,3348.2,0.00397896]
[1642048973307,0.1194,3348.4,3348.3,0.77698279]
[1642048973706,0.1194,3348.6,3348.3,0.77698279]
[1642048973905,1.71054209,3348.7,3348.3,0.77698279]
[1642048974156,2.73406044,3349.0,3348.4,0.00284211]
[1642048974554,2.73406044,3349.0,3348.2,0.00397896]
[1642048974754,2.85346044,3349.0,3348.2,0.00397896]
[1642048974954,1.32047627,3349.0,3348.2,0.78096175]
[1642048975155,2.06710627,3349.0,3348.2,0.78096175]
[1642048975356,0.74664,3348.9,3348.2,0.78096175]
[1642048975559,0.74664,3348.9,3348.3,2.55701437]
[1642048975755,0.74664,3348.9,3348.3,0.1194]
[1642048975956,0.74664,3348.9,3348.4,0.00284211]
[1642048976560,2.06710627,3349.0,3348.4,0.00284211]
[1642048976761,1.94770627,3349.0,3348.4,0.7798249]
[1642048977159,1.94770627,3349.0,3348.5,0.00227369]
[1642048977760,2.06710627,3349.0,3348.5,0.00227369]
[1642048978016,2.81375627,3349.0,3348.5,0.00227369]
[1642048978215,0.74675,3348.8,3348.5,0.00227369]
[1642048979212,0.74675,3348.7,3348.5,0.00227369]
[1642048980213,1.94773627,3349.0,3348.5,0.00227369]
[1642048980413,1.94771627,3349.0,3348.4,0.00284211]
[1642048980916,1.20107627,3349.0,3348.4,0.00284211]
[1642048981112,1.20107627,3349.0,3348.4,0.7798249]
[1642048981514,1.20107627,3349.0,3348.5,0.00227369]
[1642048982949,1.20107627,3349.0,3348.5,0.77925648]
[1642048983148,1.20107627,3349.0,3348.6,2.74971847]
[1642048983350,1.20107627,3349.0,3348.6,2.75142374]
[1642048983550,1.20107627,3349.0,3348.7,0.00113684]
[1642048983955,1.53298417,3349.4,3348.7,0.00113684]
[1642048984350,0.00113685,3349.1,3348.7,0.00113684]
[1642048984551,0.00113685,3349.1,3348.8,0.1194]
[1642048985050,0.00113685,3349.1,3348.8,2.61129344]
[1642048985492,0.00113685,3349.1,3348.8,2.91129344]
[1642048986096,1.48460859,3349.5,3348.9,4.1]
[1642048986298,1.22618043,3349.4,3349.0,2.54912186]
[1642048986500,0.00113685,3349.3,3349.0,2.44786777]
[1642048986696,0.00113685,3349.3,3348.9,0.77811963]
[1642048987299,0.00113685,3349.3,3349.1,0.77698279]
[1642048987697,0.00113685,3349.3,3349.2,2.41509903]
[1642048987899,0.00113685,3349.3,3349.1,0.77698279]
[1642048988100,0.00113685,3349.3,3348.9,0.00113684]
[1642048988101,0.00113685,3349.3,3349.0,0.77698279]
[1642048988299,0.00113685,3349.3,3349.1,2.41356143]
[1642048988599,0.00113685,3349.3,3349.0,0.77698279]
[1642048988802,0.00113685,3349.3,3349.1,2.4282289]
[1642048989248,0.00113685,3349.3,3349.2,0.77698279]
[1642048989851,1.73360602,3349.3,3349.2,0.77698279]
[1642048990751,1.73360602,3349.3,3348.9,0.00113684]
[1642048990955,1.73360602,3349.3,3348.9,2.52347365]
[1642048991557,1.73360602,3349.3,3349.2,0.77698279]
[1642048992353,1.73360602,3349.3,3349.0,0.77698279]
[1642048993003,1.73360602,3349.3,3349.2,0.77698279]
[1642048994105,1.73360602,3349.3,3349.2,3.0]
[1642048995705,1.73360602,3349.3,3349.2,5.52954055]
[1642048996108,1.73360602,3349.3,3349.2,3.0]
[1642048997347,1.73360602,3349.3,3349.2,3.80863622]
[1642048998853,1.73360602,3349.3,3349.2,3.0]
[1642049009530,1.73360602,3349.3,3349.2,5.0]
[1642049015156,4.51648912,3349.3,3349.2,5.0]
[1642049015397,4.81648912,3349.3,3349.2,5.0]
[1642049015604,11.49248912,3349.3,3349.2,5.0]
[1642049016000,6.8,3349.2,3348.9,0.00113684]
[1642049016204,8.54405058,3349.0,3348.9,0.00113684]
[1642049016402,10.41705058,3349.0,3348.7,0.00227369]
[1642049016604,4.38673429,3348.8,3348.7,0.00227369]
[1642049016803,4.68673429,3348.8,3348.7,0.00227369]
[1642049017802,6.41920346,3348.8,3348.7,0.00227369]
[1642049023710,6.53860346,3348.8,3348.7,0.00227369]
[1642049025418,1.85186917,3348.8,3348.7,0.00227369]
[1642049025616,1.73246917,3348.8,3348.7,0.00227369]
[1642049026114,1.73246917,3348.8,3347.9,0.00682108]
[1642049026316,1.46010543,3348.1,3348.0,5.8694]
[1642049026515,1.46010543,3348.1,3348.0,0.1194]
[1642049026767,1.46010543,3348.1,3348.0,0.12565266]
[1642049026966,1.46010543,3348.1,3348.0,0.00625266]
[1642049027165,1.46010543,3348.1,3348.0,0.12565266]
[1642049027365,1.46010543,3348.1,3348.0,0.00625266]
[1642049027571,1.46010543,3348.1,3348.0,0.12565266]
[1642049027771,1.46010543,3348.1,3348.0,0.00625266]
[1642049027973,1.46010543,3348.1,3348.0,0.12565266]
[1642049028179,1.46010543,3348.1,3348.0,0.00625266]
[1642049028475,1.46010543,3348.1,3348.0,0.12565266]
[1642049028672,1.46010543,3348.1,3348.0,0.00625266]
[1642049031501,1.46010543,3348.1,3347.9,0.00682108]
[1642049031701,1.46010543,3348.1,3347.8,0.12678951]
[1642049031903,1.46010543,3348.1,3347.8,0.1194]
[1642049032101,1.46010543,3348.1,3347.9,0.00682108]
[1642049032505,1.46010543,3348.1,3347.7,0.00795793]
[1642049032707,1.46010543,3348.1,3347.8,0.1194]
[1642049033110,1.46010543,3348.1,3347.9,0.00682108]
[1642049033510,1.46010543,3348.1,3347.9,2.49685715]
[1642049033709,0.1194,3348.6,3348.0,17.54]
[1642049033909,0.1194,3348.8,3348.1,20.07839857]
[1642049034162,0.4194,3349.0,3348.1,17.54568424]
[1642049034366,0.4194,3349.0,3348.2,2.44119214]
[1642049034857,1.4146828,3348.9,3348.3,0.00454739]
[1642049035057,0.1194,3348.8,3348.3,0.00454739]
[1642049035257,0.1194,3348.8,3348.2,0.00511581]
[1642049035459,1.15158987,3348.3,3348.2,0.00511581]
[1642049035858,1.15158987,3348.3,3347.9,20.35390842]
[1642049036062,1.15158987,3348.3,3348.0,0.00625266]
[1642049036258,1.15158987,3348.3,3348.0,2.45948774]
[1642049036659,1.15158987,3348.3,3348.1,0.00568424]
[1642049037261,1.15158987,3348.3,3348.0,0.00625266]
[1642049038015,1.15158987,3348.3,3347.7,17.54]
[1642049038220,1.15158987,3348.3,3347.8,0.1194]
[1642049038616,1.15158987,3348.3,3347.9,0.00682108]
[1642049039018,1.86048356,3348.2,3347.9,0.00682108]
[1642049040519,1.86048356,3348.2,3347.9,17.54682108]
[1642049040919,1.86048356,3348.2,3348.0,0.00625266]
[1642049041119,1.15158987,3348.3,3348.0,0.00625266]
[1642049041321,1.15158987,3348.3,3348.0,2.4673496]
[1642049041769,1.15158987,3348.3,3348.1,0.00568424]
[1642049042170,1.15158987,3348.3,3348.1,0.68513177]
[1642049042570,1.15158987,3348.3,3348.2,5.45511581]
[1642049042868,1.15158987,3348.3,3348.2,6.13456334]
[1642049043273,1.15158987,3348.3,3348.2,0.68456334]
[1642049045604,3.01313647,3348.3,3348.2,0.68456334]
[1642049058172,3.01313647,3348.3,3348.2,21.52456334]
[1642049059174,1.15158987,3348.3,3348.2,21.52456334]
[1642049059373,1.15158987,3348.3,3348.2,22.97760145]
[1642049061010,1.15158987,3348.3,3348.2,19.97760145]
[1642049061215,1.15158987,3348.3,3348.2,2.43760145]
[1642049062413,1.15158987,3348.3,3348.2,0.98456334]
[1642049062414,3.01065938,3348.3,3348.2,0.98456334]
[1642049064665,3.01065938,3348.3,3348.2,0.68456334]
[1642049069629,3.01065938,3348.3,3348.2,0.98456334]
[1642049070127,3.01065938,3348.3,3348.2,0.68456334]
[1642049072360,2.91563003,3349.1,3348.3,6.9194]
[1642049072361,1.53211069,3349.1,3348.3,6.9194]
[1642049072561,1.53211069,3349.1,3348.4,2.79951302]